[Event "Estonian-ch Open 2020"]
[Site "Paul Kerese Malemaja"]
[Date "2020.08.09"]
[Round "2.5"]
[White "Haitin, Ilja"]
[Black "Shishkov, Andrei"]
[Result "0-1"]
[ECO "D00"]
[WhiteElo "2357"]
[BlackElo "2390"]
[Annotator "RC"]
[PlyCount "92"]
[EventDate "2020.08.09"]
[EventCountry "EST"]
[SourceTitle "playchess.com"]
[Source "ChessBase"]
[SourceQuality "1"]
[TimeControl "40/5400+30:900+30"]

1. d4 {[%emt 0:00:00]} d5 {[%emt 0:00:15]} 2. Bf4 {[%emt 0:00:00]} e6 {[%emt 0:00:08]} 3. e3 {[%emt 0:00:00]} c5 {[%emt 0:00:05]} 4. c3 {[%emt 0:00:13]} Nc6 {[%emt 0:00:06]} 5. Nf3 {[%emt 0:01:20]} Nf6 {[%emt 0:01:17]} 6. Nbd2 {[%emt 0:00:24]} Bd6 {[%emt 0:00:11]} 7. Bg3 {[%emt 0:00:14]} O-O {[%emt 0:00:08]} 8. Bb5 {[%emt 0:04:59]} Be7 {[%emt 0:00:39]} 9. Bd3 {[%emt 0:09:32]} b6 {[%emt 0:05:29]} 10. Ne5 {[%emt 0:02:17]} Bb7 {[%emt 0:12:58]} 11. Qb1 {[%emt 0:05:14]} g6 {[%emt 0:01:50]} 12. f4 {[%emt 0:01:33]} Nh5 {[%emt 0:06:43]} 13. Ndf3 {[%emt 0:03:06]} f6 {[%emt 0:16:15]} 14. Nxc6 {[%emt 0:16:37]} Bxc6 {[%emt 0:00:14]} 15. Bf2 {[%emt 0:01:27]} cxd4 {[%emt 0:03:06]} 16. cxd4 {[%emt 0:03:20]} Bb4+ {[%emt 0:02:00]} 17. Ke2 {[%emt 0:00:39]} Qe8 {[%emt 0:03:30]} 18. g4 {[%emt 0:10:55]} Ng7 {[%emt 0:02:24]} 19. Bg3 {[%emt 0:02:02]} Bb5 {[%emt 0:04:46]} 20. Bxb5 {[%emt 0:00:36]} Qxb5+ {[%emt 0:00:04]} 21. Qd3 {[%emt 0:00:14]} Qd7 {[%emt 0:02:36]} 22. h3 {[%emt 0:01:54]} Bd6 {[%emt 0:03:31]} 23. Kf2 {[%emt 0:06:28]} Rac8 {[%emt 0:01:34]} 24. Rhc1 {[%emt 0:08:56]} Rc7 {[%emt 0:01:05]} 25. Qd2 {[%emt 0:10:05]} Rfc8 {[%emt 0:01:44]} 26. Ng1 {[%emt 0:02:32]} Ne8 {[%emt 0:04:22]} 27. Ne2 {[%emt 0:01:20]} f5 {[%emt 0:01:23]} 28. Bh4 {[%emt 0:04:39]} fxg4 {[%emt 0:03:27]} 29. hxg4 {[%emt 0:00:30]} Be7 {[%emt 0:00:05]} 30. Bxe7 {[%emt 0:01:07]} Qxe7 {[%emt 0:00:05]} 31. g5 {[%emt 0:01:06]} Nd6 {[%emt 0:00:43]} 32. Ng3 {[%emt 0:00:20]} h5 {[%emt 0:03:43]} 33. Rxc7 {[%emt 0:02:18]} Qxc7 {[%emt 0:00:24]} 34. Qb4 {[%emt 0:00:25]} a5 {[%emt 0:06:53]} 35. Qa3 {[%emt 0:00:08]} h4 {[%emt 0:09:24]} 36. Ne2 {[%emt 0:00:08]} Ne4+ {[%emt 0:00:04]} 37. Kf3 {[%emt 0:01:03]} Qh7 {[%emt 0:00:11]} 38. Qd3 {[%emt 0:00:48]} Qh5+ {[%emt 0:04:02]} 39. Kg2 {[%emt 0:00:00]} Kg7 {[%emt 0:00:57]} 40. Rg1 {[%emt 0:00:00]} Qg4+ {[%emt 0:00:00]} 41. Kh2 {[%emt 0:01:51]} Qf3 {[%emt 0:04:21]} 42. Qb5 {[%emt 0:02:38]} Rf8 {[%emt 0:02:16]} 43. f5 {[%emt 0:03:30]} Rxf5 {[%emt 0:02:01]} 44. Nf4 {[%emt 0:00:47]} Rxf4 {[%emt 0:02:41]} 45. exf4 {[%emt 0:00:31]} Qxf4+ {[%emt 0:00:54]} 46. Kh3 {[%emt 0:01:22]} Nxg5+ {[%emt 0:00:37]} 0-1

[Event "Estonian-ch Open 2020"]
[Site "Paul Kerese Malemaja"]
[Date "2020.08.10"]
[Round "3.1"]
[White "Shishkov, Andrei"]
[Black "Volodin, Aleksandr"]
[Result "1-0"]
[ECO "E35"]
[WhiteElo "2390"]
[BlackElo "2497"]
[Annotator "ChessBase"]
[PlyCount "95"]
[EventDate "2020.08.09"]
[EventCountry "EST"]
[SourceTitle "playchess.com"]
[Source "ChessBase"]
[SourceQuality "1"]
[TimeControl "40/5400+30:900+30"]

1. d4 {[%emt 0:00:00]} Nf6 {[%emt 0:00:00]} 2. c4 {[%emt 0:00:00]} e6 {[%emt 0:00:00]} 3. Nc3 {[%emt 0:00:00]} Bb4 {[%emt 0:00:00]} 4. Qc2 {[%emt 0:00:00]} d5 {[%emt 0:00:00]} 5. cxd5 {[%emt 0:00:06]} exd5 {[%emt 0:00:00]} 6. Bg5 {[%emt 0:00:33]} c5 {[%emt 0:00:08]} 7. dxc5 {[%emt 0:01:32]} h6 {[%emt 0:00:07]} 8. Bh4 {[%emt 0:03:44]} O-O {[%emt 0:00:16]} 9. e3 {[%emt 0:02:52]} Be6 {[%emt 0:00:09]} 10. Nf3 {[%emt 0:03:19]} Nbd7 {[%emt 0:00:07]} 11. c6 {[%emt 0:04:19]} bxc6 {[%emt 0:00:52]} 12. Be2 {[%emt 0:00:31]} c5 {[%emt 0:16:20]} 13. O-O {[%emt 0:00:43]} Rc8 {[%emt 0:13:38]} 14. Rfd1 {[%emt 0:03:18]} Qa5 {[%emt 0:01:15]} 15. Nb5 {[%emt 0:15:08]} Qb6 {[%emt 0:11:21]} 16. Rac1 {[%emt 0:25:34]} a6 {[%emt 0:06:33]} 17. Nc3 {[%emt 0:00:22]} Qa7 {[%emt 0:10:16]} 18. Qa4 {[%emt 0:02:59]} Ra8 {[%emt 0:01:05]} 19. Nb1 {[%emt 0:09:20]} Nb6 {[%emt 0:02:51]} 20. Qc2 {[%emt 0:00:22]} Nfd7 {[%emt 0:05:46]} 21. a3 {[%emt 0:01:05]} Ba5 {[%emt 0:00:05]} 22. b4 {[%emt 0:08:07]} cxb4 {[%emt 0:00:12]} 23. Nd4 {[%emt 0:03:25]} Rac8 {[%emt 0:11:10]} 24. Qd2 {[%emt 0:00:25]} Nc4 {[%emt 0:04:12]} 25. Bxc4 {[%emt 0:01:03]} dxc4 {[%emt 0:00:07]} 26. Nxe6 {[%emt 0:03:14]} fxe6 {[%emt 0:00:09]} 27. Qxd7 {[%emt 0:05:54]} Qxd7 {[%emt 0:00:05]} 28. Rxd7 {[%emt 0:00:00]} b3 {[%emt 0:00:08]} 29. Rb7 {[%emt 0:01:23]} c3 {[%emt 0:02:36]} 30. Rxb3 {[%emt 0:03:13]} c2 {[%emt 0:00:01]} 31. Kf1 {[%emt 0:00:55]} Rc4 {[%emt 0:09:06]} 32. Be7 {[%emt 0:00:27]} Rfc8 {[%emt 0:01:22]} 33. Ke2 {[%emt 0:00:43]} cxb1=Q {[%emt 0:00:16]} 34. Rcxb1 {[%emt 0:00:07]} Rc2+ {[%emt 0:00:36]} 35. Kf3 {[%emt 0:00:17]} Kf7 {[%emt 0:04:26]} 36. Rb7 {[%emt 0:00:23]} Kg6 {[%emt 0:00:53]} 37. Ra7 {[%emt 0:00:46]} R2c6 {[%emt 0:00:36]} 38. Rbb7 {[%emt 0:00:52]} Bc3 {[%emt 0:00:25]} 39. Bb4 {[%emt 0:00:30]} Bf6 {[%emt 0:00:27]} 40. g4 {[%emt 0:00:00]} h5 {[%emt 0:00:00]} 41. h3 {[%emt 0:06:52]} hxg4+ {[%emt 0:00:57]} 42. hxg4 {[%emt 0:00:05]} Be5 {[%emt 0:01:01]} 43. Ke4 {[%emt 0:00:50]} Bf6 {[%emt 0:02:27]} 44. f4 {[%emt 0:00:13]} Rc4+ {[%emt 0:00:27]} 45. Kf3 {[%emt 0:00:41]} R4c6 {[%emt 0:01:38]} 46. g5 {[%emt 0:01:23]} Bb2 {[%emt 0:00:28]} 47. Kg4 {[%emt 0:00:40]} Rd8 {[%emt 0:00:24]} 48. Ba5 {[%emt 0:03:05]} 1-0

[Event "Estonian-ch Open 2020"]
[Site "Paul Kerese Malemaja"]
[Date "2020.08.10"]
[Round "3.2"]
[White "Seeman, Tarvo"]
[Black "Haitin, Ilja"]
[Result "1-0"]
[ECO "A05"]
[WhiteElo "2415"]
[BlackElo "2357"]
[Annotator "ChessBase"]
[PlyCount "75"]
[EventDate "2020.08.09"]
[EventCountry "EST"]
[SourceTitle "playchess.com"]
[Source "ChessBase"]
[SourceQuality "1"]
[TimeControl "40/5400+30:900+30"]

1. Nf3 {[%emt 0:00:00]} Nf6 {[%emt 0:00:00]} 2. g3 {[%emt 0:00:00]} g6 {[%emt 0:00:00]} 3. Bg2 {[%emt 0:00:00]} Bg7 {[%emt 0:00:00]} 4. O-O {[%emt 0:00:00]} O-O {[%emt 0:00:00]} 5. d4 {[%emt 0:00:00]} d6 {[%emt 0:00:00]} 6. a4 {[%emt 0:01:58]} c6 {[%emt 0:00:32]} 7. a5 {[%emt 0:00:43]} Nbd7 {[%emt 0:00:21]} 8. Nbd2 {[%emt 0:01:21]} Qc7 {[%emt 0:03:00]} 9. e4 {[%emt 0:04:05]} e5 {[%emt 0:02:19]} 10. dxe5 {[%emt 0:01:01]} dxe5 {[%emt 0:00:43]} 11. Re1 {[%emt 0:00:25]} Nc5 {[%emt 0:03:46]} 12. b4 {[%emt 0:01:03]} Ne6 {[%emt 0:05:40]} 13. Bb2 {[%emt 0:00:13]} Nh5 {[%emt 0:02:34]} 14. Nc4 {[%emt 0:07:05]} Rd8 {[%emt 0:05:01]} 15. Qe2 {[%emt 0:03:42]} Nd4 {[%emt 0:02:39]} 16. Nxd4 {[%emt 0:00:42]} exd4 {[%emt 0:00:05]} 17. e5 {[%emt 0:00:45]} Be6 {[%emt 0:06:28]} 18. Nd6 {[%emt 0:02:47]} Rxd6 {[%emt 0:05:08]} 19. exd6 {[%emt 0:00:08]} Qxd6 {[%emt 0:00:13]} 20. b5 {[%emt 0:10:48]} a6 {[%emt 0:07:18]} 21. bxc6 {[%emt 0:04:45]} bxc6 {[%emt 0:00:19]} 22. Ba3 {[%emt 0:08:08]} Qd7 {[%emt 0:07:49]} 23. Rab1 {[%emt 0:01:19]} Nf6 {[%emt 0:09:14]} 24. Rb6 {[%emt 0:01:58]} Nd5 {[%emt 0:13:52]} 25. Rxa6 {[%emt 0:04:03]} Rb8 {[%emt 0:00:49]} 26. Bc5 {[%emt 0:00:23]} h5 {[%emt 0:00:24]} 27. Ra7 {[%emt 0:03:33]} Qd8 {[%emt 0:01:28]} 28. Qd2 {[%emt 0:05:01]} Nc3 {[%emt 0:10:31]} 29. Rxe6 {[%emt 0:02:08]} fxe6 {[%emt 0:05:10]} 30. Rxg7+ {[%emt 0:00:20]} Kxg7 {[%emt 0:00:45]} 31. Bxd4+ {[%emt 0:00:25]} Kf7 {[%emt 0:03:08]} 32. Bxc3 {[%emt 0:00:34]} Rb1+ {[%emt 0:00:20]} 33. Bf1 {[%emt 0:00:07]} Qd5 {[%emt 0:01:17]} 34. Qxd5 {[%emt 0:01:32]} exd5 {[%emt 0:00:32]} 35. a6 {[%emt 0:00:09]} Rb8 {[%emt 0:00:40]} 36. a7 {[%emt 0:01:00]} Ra8 {[%emt 0:00:17]} 37. Bd4 {[%emt 0:00:08]} Ke6 {[%emt 0:00:18]} 38. Ba6 {[%emt 0:00:21]} 1-0

[Event "Estonian-ch Open 2020"]
[Site "Paul Kerese Malemaja"]
[Date "2020.08.10"]
[Round "3.3"]
[White "Chukavin, Kirill"]
[Black "Vorobjov, Pavel"]
[Result "1/2-1/2"]
[ECO "B40"]
[WhiteElo "2348"]
[BlackElo "2269"]
[Annotator "ChessBase"]
[PlyCount "20"]
[EventDate "2020.08.09"]
[EventCountry "EST"]
[SourceTitle "playchess.com"]
[Source "ChessBase"]
[SourceQuality "1"]
[TimeControl "40/5400+30:900+30"]

1. e4 {[%emt 0:00:41]} c5 {[%emt 0:00:00]} 2. Nf3 {[%emt 0:00:57]} e6 {[%emt 0:00:00]} 3. g3 {[%emt 0:05:15]} Nc6 {[%emt 0:02:18]} 4. Bg2 {[%emt 0:00:12]} Nf6 {[%emt 0:00:23]} 5. Nc3 {[%emt 0:00:59]} d5 {[%emt 0:00:55]} 6. exd5 {[%emt 0:01:35]} Nxd5 {[%emt 0:00:39]} 7. Nxd5 {[%emt 0:01:39]} Qxd5 {[%emt 0:00:47]} 8. O-O {[%emt 0:01:03]} Be7 {[%emt 0:02:45]} 9. Qe2 {[%emt 0:14:28]} O-O {[%emt 0:03:06]} 10. c3 {[%emt 0:22:29]} Rd8 {[%emt 0:05:59]} 1/2-1/2

[Event "Estonian-ch Open 2020"]
[Site "Paul Kerese Malemaja"]
[Date "2020.08.10"]
[Round "3.5"]
[White "Kiik, Kalle"]
[Black "Kulaots, Kaido"]
[Result "0-1"]
[ECO "B30"]
[WhiteElo "2386"]
[BlackElo "2524"]
[Annotator "ChessBase"]
[PlyCount "64"]
[EventDate "2020.08.09"]
[EventCountry "EST"]
[SourceTitle "playchess.com"]
[Source "ChessBase"]
[SourceQuality "1"]
[TimeControl "40/5400+30:900+30"]

1. e4 {[%emt 0:00:00]} c5 {[%emt 0:00:00]} 2. Nf3 {[%emt 0:00:00]} Nc6 {[%emt 0:02:55]} 3. Bb5 {[%emt 0:00:46]} e6 {[%emt 0:01:39]} 4. O-O {[%emt 0:06:35]} Nge7 {[%emt 0:00:14]} 5. b3 {[%emt 0:02:33]} a6 {[%emt 0:03:12]} 6. Bxc6 {[%emt 0:01:58]} Nxc6 {[%emt 0:00:05]} 7. Bb2 {[%emt 0:00:21]} b5 {[%emt 0:07:01]} 8. a4 {[%emt 0:03:42]} b4 {[%emt 0:03:07]} 9. d3 {[%emt 0:01:25]} d6 {[%emt 0:02:39]} 10. d4 {[%emt 0:03:54]} cxd4 {[%emt 0:02:19]} 11. Nxd4 {[%emt 0:00:16]} Nxd4 {[%emt 0:01:54]} 12. Qxd4 {[%emt 0:00:34]} a5 {[%emt 0:00:49]} 13. c4 {[%emt 0:01:05]} e5 {[%emt 0:04:45]} 14. Qd3 {[%emt 0:01:54]} Be7 {[%emt 0:00:12]} 15. f4 {[%emt 0:03:35]} O-O {[%emt 0:02:13]} 16. f5 {[%emt 0:04:47]} g6 {[%emt 0:14:16]} 17. Nd2 {[%emt 0:04:30]} gxf5 {[%emt 0:03:33]} 18. exf5 {[%emt 0:00:50]} Bb7 {[%emt 0:02:19]} 19. c5 {[%emt 0:15:48]} f6 {[%emt 0:01:58]} 20. Nc4 {[%emt 0:04:53]} d5 {[%emt 0:03:57]} 21. c6 {[%emt 0:05:39]} Bxc6 {[%emt 0:04:28]} 22. Nxe5 {[%emt 0:06:31]} fxe5 {[%emt 0:02:09]} 23. Qg3+ {[%emt 0:00:37]} Kh8 {[%emt 0:01:01]} 24. f6 {[%emt 0:02:43]} Bc5+ {[%emt 0:02:04]} 25. Kh1 {[%emt 0:00:05]} Rf7 {[%emt 0:00:11]} 26. Bxe5 {[%emt 0:03:37]} Qd7 {[%emt 0:05:56]} 27. Qd3 {[%emt 0:09:24]} d4 {[%emt 0:02:23]} 28. Rf5 {[%emt 0:00:34]} Rg8 {[%emt 0:05:34]} 29. Rg1 {[%emt 0:01:48]} Qb7 {[%emt 0:00:36]} 30. Rf2 {[%emt 0:04:19]} Be4 {[%emt 0:00:34]} 31. Qc4 {[%emt 0:00:15]} Ba7 {[%emt 0:04:11]} 32. Bxd4 {[%emt 0:00:59]} Rc8 {[%emt 0:00:32]} 0-1

[Event "Estonian-ch Open 2020"]
[Site "Paul Kerese Malemaja"]
[Date "2020.08.11"]
[Round "4.3"]
[White "Vorobjov, Pavel"]
[Black "Sepp, Olav"]
[Result "1/2-1/2"]
[ECO "C44"]
[WhiteElo "2269"]
[BlackElo "2410"]
[Annotator "ChessBase"]
[PlyCount "79"]
[EventDate "2020.08.09"]
[EventCountry "EST"]
[SourceTitle "playchess.com"]
[Source "ChessBase"]
[SourceQuality "1"]
[TimeControl "40/5400+30:900+30"]

1. e4 {[%emt 0:00:00]} e5 {[%emt 0:01:06]} 2. Nf3 {[%emt 0:00:00]} Nc6 {[%emt 0:00:10]} 3. d4 {[%emt 0:00:00]} exd4 {[%emt 0:00:11]} 4. Nxd4 {[%emt 0:00:01]} Nf6 {[%emt 0:00:07]} 5. Nc3 {[%emt 0:00:10]} Bb4 {[%emt 0:00:05]} 6. Nxc6 {[%emt 0:00:14]} bxc6 {[%emt 0:00:05]} 7. Bd3 {[%emt 0:00:15]} O-O {[%emt 0:00:07]} 8. O-O {[%emt 0:00:13]} Re8 {[%emt 0:00:23]} 9. Qf3 {[%emt 0:07:20]} Rb8 {[%emt 0:04:15]} 10. Bg5 {[%emt 0:01:35]} Bd6 {[%emt 0:00:49]} 11. Bxf6 {[%emt 0:11:59]} Qxf6 {[%emt 0:00:11]} 12. Qxf6 {[%emt 0:00:07]} gxf6 {[%emt 0:00:03]} 13. Rab1 {[%emt 0:01:16]} Be5 {[%emt 0:04:17]} 14. Rfd1 {[%emt 0:11:08]} d6 {[%emt 0:03:43]} 15. Na4 {[%emt 0:02:19]} c5 {[%emt 0:07:40]} 16. b3 {[%emt 0:01:04]} Bb7 {[%emt 0:29:03]} 17. f3 {[%emt 0:05:50]} a5 {[%emt 0:00:54]} 18. Bc4 {[%emt 0:05:59]} Rbd8 {[%emt 0:05:03]} 19. Kh1 {[%emt 0:16:37]} h5 {[%emt 0:03:25]} 20. Bb5 {[%emt 0:01:25]} Rf8 {[%emt 0:01:18]} 21. Rf1 {[%emt 0:02:59]} Bf4 {[%emt 0:08:25]} 22. Rbd1 {[%emt 0:00:41]} h4 {[%emt 0:01:16]} 23. g3 {[%emt 0:00:46]} hxg3 {[%emt 0:01:30]} 24. hxg3 {[%emt 0:00:16]} Bh6 {[%emt 0:02:43]} 25. Kg2 {[%emt 0:01:16]} Kg7 {[%emt 0:00:45]} 26. Rfe1 {[%emt 0:03:59]} Rh8 {[%emt 0:03:05]} 27. Bd3 {[%emt 0:04:16]} Rdg8 {[%emt 0:00:33]} 28. Nc3 {[%emt 0:03:06]} Kf8 {[%emt 0:01:04]} 29. Kf2 {[%emt 0:00:41]} Bg7 {[%emt 0:02:38]} 30. Rh1 {[%emt 0:06:09]} f5 {[%emt 0:00:18]} 31. Nb5 {[%emt 0:00:41]} Rxh1 {[%emt 0:02:19]} 32. Rxh1 {[%emt 0:00:06]} fxe4 {[%emt 0:02:26]} 33. Bxe4 {[%emt 0:02:12]} d5 {[%emt 0:07:58]} 34. Bd3 {[%emt 0:03:53]} Bc6 {[%emt 0:07:58]} 35. Re1 {[%emt 0:01:00]} Bxb5 {[%emt 0:00:54]} 36. Bxb5 {[%emt 0:00:04]} Bd4+ {[%emt 0:00:11]} 37. Kg2 {[%emt 0:00:15]} Rg6 {[%emt 0:00:31]} 38. Re8+ {[%emt 0:02:07]} Kg7 {[%emt 0:00:01]} 39. Re7 {[%emt 0:00:59]} c6 {[%emt 0:00:51]} 40. Bd3 {[%emt 0:00:00]} 1/2-1/2

[Event "Estonian-ch Open 2020"]
[Site "Paul Kerese Malemaja"]
[Date "2020.08.11"]
[Round "4.4"]
[White "Haitin, Ilja"]
[Black "Chukavin, Kirill"]
[Result "0-1"]
[ECO "D00"]
[WhiteElo "2357"]
[BlackElo "2348"]
[Annotator "ChessBase"]
[PlyCount "58"]
[EventDate "2020.08.09"]
[EventCountry "EST"]
[SourceTitle "playchess.com"]
[Source "ChessBase"]
[SourceQuality "1"]
[TimeControl "40/5400+30:900+30"]

1. d4 {[%emt 0:00:00]} d5 {[%emt 0:00:00]} 2. Bf4 {[%emt 0:00:00]} c5 {[%emt 0:00:22]} 3. e3 {[%emt 0:00:34]} Nc6 {[%emt 0:00:16]} 4. c3 {[%emt 0:00:47]} Bf5 {[%emt 0:00:13]} 5. Qb3 {[%emt 0:03:20]} Qd7 {[%emt 0:00:47]} 6. Nf3 {[%emt 0:04:46]} e6 {[%emt 0:02:21]} 7. dxc5 {[%emt 0:10:34]} Bxc5 {[%emt 0:09:26]} 8. Ne5 {[%emt 0:32:15]} Qc8 {[%emt 0:01:00]} 9. Nd2 {[%emt 0:08:06]} Nf6 {[%emt 0:20:10]} 10. g4 {[%emt 0:05:51]} Nxg4 {[%emt 0:08:48]} 11. Nxg4 {[%emt 0:03:24]} Bxg4 {[%emt 0:00:09]} 12. Rg1 {[%emt 0:01:56]} Bf5 {[%emt 0:04:07]} 13. e4 {[%emt 0:05:37]} dxe4 {[%emt 0:10:28]} 14. Rxg7 {[%emt 0:01:56]} Bg6 {[%emt 0:06:06]} 15. Nc4 {[%emt 0:01:53]} e5 {[%emt 0:08:30]} 16. Qb5 {[%emt 0:13:05]} exf4 {[%emt 0:03:07]} 17. Qxc5 {[%emt 0:00:24]} Qe6 {[%emt 0:00:19]} 18. O-O-O {[%emt 0:03:47]} Qe7 {[%emt 0:00:18]} 19. Nd6+ Kf8 {[%emt 0:00:07]} 20. Rxg6 {[%emt 0:01:11]} hxg6 {[%emt 0:00:09]} 21. Bc4 {[%emt 0:00:32]} Rh5 {[%emt 0:03:12]} 22. Qa3 {[%emt 0:00:26]} Rd8 {[%emt 0:00:38]} 23. Nxe4 {[%emt 0:00:35]} Rxd1+ {[%emt 0:00:22]} 24. Kxd1 {[%emt 0:00:06]} Qxa3 {[%emt 0:00:13]} 25. bxa3 {[%emt 0:00:01]} Rxh2 {[%emt 0:00:13]} 26. Ke2 {[%emt 0:00:11]} Ke7 {[%emt 0:00:22]} 27. Bd5 {[%emt 0:00:17]} f5 {[%emt 0:00:48]} 28. Ng5 {[%emt 0:00:32]} Kf6 {[%emt 0:00:19]} 29. Ne6 {[%emt 0:00:19]} Ke5 {[%emt 0:01:14]} 0-1

[Event "Estonian-ch Open 2020"]
[Site "Paul Kerese Malemaja"]
[Date "2020.08.11"]
[Round "4.5"]
[White "Shishkov, Andrei"]
[Black "Seeman, Tarvo"]
[Result "0-1"]
[ECO "A50"]
[WhiteElo "2390"]
[BlackElo "2415"]
[Annotator "ChessBase"]
[PlyCount "77"]
[EventDate "2020.08.09"]
[EventCountry "EST"]
[SourceTitle "playchess.com"]
[Source "ChessBase"]
[SourceQuality "1"]
[TimeControl "40/5400+30:900+30"]

1. d4 {[%emt 0:00:00]} Nf6 {[%emt 0:00:00]} 2. c4 {[%emt 0:00:00]} g6 {[%emt 0:00:00]} 3. f3 {[%emt 0:00:00]} c5 {[%emt 0:01:56]} 4. d5 {[%emt 0:00:00]} Bg7 {[%emt 0:00:06]} 5. e4 {[%emt 0:00:00]} d6 {[%emt 0:00:05]} 6. Ne2 {[%emt 0:00:04]} O-O {[%emt 0:02:03]} 7. Nec3 {[%emt 0:00:44]} e5 {[%emt 0:02:18]} 8. g4 {[%emt 0:06:42]} h5 {[%emt 0:02:17]} 9. h3 {[%emt 0:01:43]} Nh7 {[%emt 0:01:58]} 10. Be3 {[%emt 0:01:49]} h4 {[%emt 0:00:18]} 11. Bd3 {[%emt 0:03:48]} Bf6 {[%emt 0:03:24]} 12. Nd2 {[%emt 0:05:25]} Bg5 {[%emt 0:05:13]} 13. Nf1 {[%emt 0:05:57]} Na6 {[%emt 0:03:13]} 14. a3 {[%emt 0:02:23]} Bd7 {[%emt 0:02:15]} 15. Qd2 {[%emt 0:04:18]} Qf6 {[%emt 0:07:36]} 16. Kf2 {[%emt 0:11:41]} Rfb8 {[%emt 0:11:34]} 17. Nb5 {[%emt 0:14:16]} Bxb5 {[%emt 0:02:00]} 18. cxb5 {[%emt 0:00:02]} Nc7 {[%emt 0:00:09]} 19. Bxg5 {[%emt 0:05:02]} Nxg5 {[%emt 0:00:26]} 20. Qe3 {[%emt 0:00:13]} a6 {[%emt 0:02:14]} 21. b6 {[%emt 0:04:59]} Nb5 {[%emt 0:00:06]} 22. Nd2 {[%emt 0:00:31]} Nd4 {[%emt 0:01:38]} 23. Kg2 {[%emt 0:00:53]} a5 {[%emt 0:05:35]} 24. Rhf1 {[%emt 0:01:43]} Qf4 {[%emt 0:09:22]} 25. Qxf4 {[%emt 0:00:08]} exf4 {[%emt 0:00:04]} 26. a4 {[%emt 0:11:27]} f6 {[%emt 0:02:18]} 27. e5 {[%emt 0:03:45]} fxe5 {[%emt 0:02:36]} 28. Bxg6 {[%emt 0:00:16]} Kf8 {[%emt 0:02:50]} 29. Bd3 {[%emt 0:01:27]} Ke7 {[%emt 0:00:19]} 30. Rac1 {[%emt 0:02:20]} Kd7 {[%emt 0:01:33]} 31. Rfe1 {[%emt 0:03:01]} Ra6 {[%emt 0:03:22]} 32. Bxa6 {[%emt 0:04:22]} bxa6 {[%emt 0:00:01]} 33. Nc4 {[%emt 0:02:18]} Ngxf3 {[%emt 0:00:35]} 34. Rf1 {[%emt 0:03:04]} Ng5 {[%emt 0:00:35]} 35. Rc3 {[%emt 0:00:31]} Ne4 {[%emt 0:01:36]} 36. Rd3 {[%emt 0:02:28]} Nf6 {[%emt 0:00:34]} 37. Re1 {[%emt 0:00:35]} Nxd5 {[%emt 0:00:29]} 38. Nxe5+ {[%emt 0:00:31]} dxe5 {[%emt 0:00:16]} 39. Rxe5 {[%emt 0:00:01]} 0-1

[Event "Estonian-ch Open 2020"]
[Site "Paul Kerese Malemaja"]
[Date "2020.08.12"]
[Round "5.1"]
[White "Seeman, Tarvo"]
[Black "Volodin, Aleksandr"]
[Result "1/2-1/2"]
[ECO "B38"]
[WhiteElo "2415"]
[BlackElo "2497"]
[Annotator "ChessBase"]
[PlyCount "42"]
[EventDate "2020.08.09"]
[EventCountry "EST"]
[SourceTitle "playchess.com"]
[Source "ChessBase"]
[SourceQuality "1"]
[TimeControl "40/5400+30:900+30"]

1. Nf3 {[%emt 0:00:00]} c5 {[%emt 0:03:08]} 2. c4 {[%emt 0:00:53]} g6 {[%emt 0:02:40]} 3. d4 {[%emt 0:03:46]} Bg7 {[%emt 0:00:21]} 4. e4 {[%emt 0:01:18]} cxd4 {[%emt 0:15:42]} 5. Nxd4 {[%emt 0:00:07]} Nc6 {[%emt 0:00:35]} 6. Be3 {[%emt 0:00:06]} Nf6 {[%emt 0:00:35]} 7. Nc3 {[%emt 0:00:07]} d6 {[%emt 0:00:27]} 8. Be2 {[%emt 0:02:08]} Bd7 {[%emt 0:00:49]} 9. Qd2 {[%emt 0:03:45]} O-O {[%emt 0:07:30]} 10. O-O {[%emt 0:00:27]} Nxd4 {[%emt 0:02:58]} 11. Bxd4 {[%emt 0:00:06]} Bc6 {[%emt 0:00:06]} 12. f3 {[%emt 0:03:58]} a5 {[%emt 0:00:14]} 13. b3 {[%emt 0:02:16]} Nd7 {[%emt 0:00:32]} 14. Be3 {[%emt 0:00:23]} Nc5 {[%emt 0:00:13]} 15. Rab1 {[%emt 0:01:48]} Be5 {[%emt 0:02:06]} 16. Rfd1 {[%emt 0:05:44]} e6 {[%emt 0:20:13]} 17. Qe1 {[%emt 0:04:58]} Qf6 {[%emt 0:04:35]} 18. Rbc1 {[%emt 0:04:03]} Rfd8 {[%emt 0:00:13]} 19. Bf1 {[%emt 0:10:14]} Bf4 {[%emt 0:04:14]} 20. g3 {[%emt 0:03:32]} Bxe3+ {[%emt 0:00:56]} 21. Qxe3 {[%emt 0:00:06]} e5 {[%emt 0:05:35]} 1/2-1/2

[Event "Estonian-ch Open 2020"]
[Site "Paul Kerese Malemaja"]
[Date "2020.08.12"]
[Round "5.2"]
[White "Chukavin, Kirill"]
[Black "Shishkov, Andrei"]
[Result "1/2-1/2"]
[ECO "B18"]
[WhiteElo "2348"]
[BlackElo "2390"]
[Annotator "ChessBase"]
[PlyCount "65"]
[EventDate "2020.08.09"]
[EventCountry "EST"]
[SourceTitle "playchess.com"]
[Source "ChessBase"]
[SourceQuality "1"]
[TimeControl "40/5400+30:900+30"]

1. e4 {[%emt 0:02:12]} c6 {[%emt 0:00:00]} 2. d4 {[%emt 0:05:43]} d5 {[%emt 0:00:00]} 3. Nc3 {[%emt 0:04:55]} dxe4 {[%emt 0:00:00]} 4. Nxe4 {[%emt 0:00:05]} Bf5 {[%emt 0:00:00]} 5. Ng3 {[%emt 0:00:17]} Bg6 {[%emt 0:00:00]} 6. Nh3 {[%emt 0:02:36]} Nd7 {[%emt 0:07:45]} 7. Nf4 {[%emt 0:00:34]} e5 {[%emt 0:02:37]} 8. Nxg6 {[%emt 0:08:04]} hxg6 {[%emt 0:00:31]} 9. dxe5 {[%emt 0:09:06]} Nxe5 {[%emt 0:12:21]} 10. Qe2 {[%emt 0:22:40]} Qe7 {[%emt 0:00:29]} 11. Bd2 {[%emt 0:00:32]} O-O-O {[%emt 0:08:38]} 12. O-O-O {[%emt 0:12:26]} Nf6 {[%emt 0:11:49]} 13. Re1 {[%emt 0:14:37]} Qd7 {[%emt 0:03:05]} 14. Ba5 {[%emt 0:08:23]} Re8 {[%emt 0:00:42]} 15. Qd2 {[%emt 0:01:16]} Qxd2+ {[%emt 0:04:10]} 16. Bxd2 {[%emt 0:00:03]} Bc5 {[%emt 0:00:07]} 17. Ne4 {[%emt 0:01:46]} Nxe4 {[%emt 0:02:57]} 18. Rxe4 {[%emt 0:00:02]} f5 {[%emt 0:01:43]} 19. Re2 {[%emt 0:00:51]} Ng4 {[%emt 0:00:12]} 20. Rxe8+ {[%emt 0:00:34]} Rxe8 {[%emt 0:00:01]} 21. Bc4 {[%emt 0:00:18]} Nxf2 {[%emt 0:02:01]} 22. Re1 {[%emt 0:00:01]} Rxe1+ {[%emt 0:02:07]} 23. Bxe1 {[%emt 0:00:01]} Be3+ {[%emt 0:00:06]} 24. Kb1 {[%emt 0:00:32]} Ng4 {[%emt 0:04:04]} 25. h3 {[%emt 0:00:53]} Ne5 {[%emt 0:01:14]} 26. Be6+ {[%emt 0:00:14]} Kc7 {[%emt 0:04:03]} 27. Bc3 {[%emt 0:00:13]} Kd6 {[%emt 0:01:11]} 28. Bc8 {[%emt 0:00:31]} b5 {[%emt 0:01:55]} 29. Bxe5+ {[%emt 0:00:22]} Kxe5 {[%emt 0:00:04]} 30. Bd7 {[%emt 0:00:11]} Kd5 {[%emt 0:01:36]} 31. Be8 {[%emt 0:00:10]} g5 {[%emt 0:00:12]} 32. Bg6 {[%emt 0:00:05]} Ke5 {[%emt 0:01:08]} 33. Be8 {[%emt 0:00:05]} 1/2-1/2